bitfinex-derivatives/quotes_BTCF0:USTF0_20250901
["timestamp","ask_amount","ask_price","bid_price","bid_amount"]
[1756766799191,0.002,108280.0,108270.0,0.99037]
[1756766799584,0.002,108280.0,108270.0,0.98993]
[1756766799784,0.002,108280.0,108270.0,1.23430811]
[1756766799990,0.002,108280.0,108270.0,0.33286811]
[1756766800189,0.002,108280.0,108270.0,0.08849]
[1756766800587,0.252,108280.0,108270.0,0.08849]
[1756766800790,0.49637811,108280.0,108270.0,0.08849]
[1756766802293,0.002,108280.0,108270.0,0.44929]
[1756766802509,0.002,108280.0,108270.0,0.93804622]
[1756766803693,0.0289586,108290.0,108270.0,0.93804622]
[1756766803694,0.03807843,108290.0,108270.0,0.93804622]
[1756766803895,0.0289586,108290.0,108280.0,1.55495811]
[1756766805908,0.0299586,108290.0,108280.0,1.55955811]
[1756766806293,0.03911401,108290.0,108280.0,1.55955811]
[1756766807001,0.0299586,108290.0,108280.0,1.55955811]
[1756766808999,0.3907586,108290.0,108280.0,0.99893]
[1756766809194,0.03920714,108290.0,108280.0,0.99893]
[1756766809794,0.03920714,108290.0,108280.0,1.24330811]
[1756766811704,0.03920714,108290.0,108280.0,0.08845]
[1756766811904,1.00000714,108290.0,108280.0,0.08845]
[1756766812209,1.24438525,108290.0,108280.0,0.08845]
[1756766812507,1.00000714,108290.0,108280.0,0.05183]
[1756766813111,1.24438525,108290.0,108280.0,0.05183]
[1756766813404,2.15210525,108290.0,108280.0,0.05183]
[1756766813904,1.90772714,108290.0,108280.0,0.05183]
[1756766814200,2.15210525,108290.0,108280.0,0.05183]
[1756766814602,2.15210525,108290.0,108280.0,0.0046]
[1756766815199,2.17329328,108290.0,108280.0,0.0046]
[1756766819307,1.92329328,108290.0,108280.0,0.0046]
[1756766820306,2.17329328,108290.0,108280.0,0.0046]
[1756766820502,2.17329328,108290.0,108280.0,0.00322]
[1756766820700,1.70897328,108290.0,108260.0,0.08385]
[1756766820900,0.60517811,108270.0,108260.0,0.08385]
[1756766821408,0.3608,108270.0,108260.0,0.32822811]
[1756766821608,0.3608,108270.0,108260.0,0.57822811]
[1756766821809,1.26444,108280.0,108270.0,0.03662]
[1756766822009,1.58444,108280.0,108270.0,0.08385]
[1756766823512,0.92517811,108280.0,108270.0,0.04723]
[1756766823810,0.7408,108280.0,108270.0,0.04823]
[1756766824015,1.88801811,108280.0,108270.0,0.08485]
[1756766824812,1.08678525,108290.0,108280.0,0.08385]
[1756766825112,2.38067404,108290.0,108280.0,0.08385]
[1756766825310,2.38067404,108290.0,108280.0,0.04723]
[1756766825806,2.38067404,108290.0,108270.0,0.06046]
[1756766826011,0.24437811,108280.0,108270.0,0.08428]
[1756766826212,0.97517811,108280.0,108270.0,0.08428]
[1756766826514,0.97517811,108280.0,108270.0,0.04704]
[1756766826708,0.97517811,108280.0,108270.0,0.04844]
[1756766826908,0.97517811,108280.0,108270.0,0.08568]
[1756766827108,0.97517811,108280.0,108270.0,0.04844]
[1756766827608,0.97517811,108280.0,108270.0,0.08568]
[1756766827812,0.97517811,108280.0,108270.0,0.08668]
[1756766829209,1.87517811,108280.0,108270.0,0.08668]
[1756766831011,0.7308,108280.0,108270.0,0.08668]
[1756766831212,0.48160714,108290.0,108280.0,0.08428]
[1756766831519,2.09120714,108290.0,108280.0,0.08428]
[1756766831707,2.33558525,108290.0,108280.0,0.08428]
[1756766832626,0.03820714,108290.0,108280.0,0.08568]
[1756766832920,1.25656714,108290.0,108280.0,0.08568]
[1756766833102,1.30756714,108290.0,108280.0,0.08568]
[1756766833905,0.40920714,108290.0,108280.0,0.08568]
[1756766834116,0.03920714,108290.0,108280.0,0.08568]
[1756766834420,0.35920714,108290.0,108280.0,0.08568]
[1756766835321,0.96438525,108290.0,108280.0,0.08568]
[1756766842325,0.96438525,108290.0,108280.0,0.15122124]
[1756766842520,0.96438525,108290.0,108280.0,0.08568]
[1756766843022,0.96438525,108290.0,108280.0,0.15122124]
[1756766843228,0.96438525,108290.0,108280.0,0.0014]
[1756766843810,1.21438525,108290.0,108280.0,0.0014]
[1756766844312,2.10710525,108290.0,108280.0,0.0014]
[1756766845337,2.12832663,108290.0,108280.0,0.0014]
[1756766845718,2.12832663,108290.0,108250.0,0.08611113]
[1756766845719,2.37270474,108290.0,108250.0,0.08611113]
[1756766845919,0.60517811,108260.0,108240.0,0.08599633]
[1756766846125,0.60517811,108250.0,108240.0,0.04427509]
[1756766846323,1.58596,108250.0,108240.0,0.06749509]
[1756766846630,1.58596,108250.0,108240.0,0.17048879]
[1756766846825,1.25596,108250.0,108240.0,0.17048879]
[1756766847031,1.60596,108250.0,108240.0,0.17048879]
[1756766847729,1.60596,108250.0,108240.0,0.11002879]
[1756766847933,1.85033811,108250.0,108240.0,0.08620879]
[1756766848233,1.85033811,108250.0,108240.0,0.02045509]
[1756766848732,1.85033811,108250.0,108240.0,0.005]
[1756766848932,1.84949811,108250.0,108240.0,0.005]
[1756766849134,1.84949811,108250.0,108230.0,0.1500337]
[1756766849321,1.84949811,108250.0,108240.0,0.001]
[1756766850225,1.84897811,108250.0,108240.0,0.02482]
[1756766850934,1.84897811,108250.0,108240.0,0.001]
[1756766851518,1.84897811,108250.0,108230.0,0.1520337]
[1756766851934,1.84897811,108250.0,108230.0,0.1500337]
[1756766852235,1.84897811,108250.0,108240.0,0.001]
[1756766852626,1.84897811,108250.0,108230.0,0.08628]
[1756766853336,1.84897811,108250.0,108240.0,0.001]
[1756766853535,2.09897811,108250.0,108240.0,0.001]
[1756766853833,1.20517811,108250.0,108240.0,0.001]
[1756766854034,2.09689811,108250.0,108240.0,0.001]
[1756766854437,1.20517811,108250.0,108240.0,0.001]
[1756766854639,2.09657811,108250.0,108240.0,0.001]
[1756766854829,1.20517811,108250.0,108240.0,0.001]
[1756766855029,2.09661811,108250.0,108240.0,0.001]
[1756766855343,2.09661811,108250.0,108220.0,0.70817181]
[1756766855344,0.9608,108250.0,108230.0,0.08395]
[1756766855635,1.25204,108240.0,108230.0,0.08395]
[1756766855932,1.25192,108250.0,108240.0,0.08195]
[1756766856237,1.25192,108250.0,108240.0,0.32732811]
[1756766856533,1.25192,108250.0,108240.0,0.08195]
[1756766856729,1.61192,108250.0,108240.0,0.08195]
[1756766857237,1.25112,108250.0,108240.0,0.08195]
[1756766857433,0.62411654,108260.0,108240.0,0.08195]
[1756766857636,0.95411654,108260.0,108240.0,0.08195]
[1756766857832,0.89072,108250.0,108240.0,0.08195]
[1756766858035,0.89072,108250.0,108240.0,0.32632811]
[1756766858234,0.89072,108250.0,108240.0,0.32732811]
[1756766858733,0.89072,108250.0,108240.0,0.32632811]
[1756766859032,0.89072,108250.0,108240.0,0.32732811]
[1756766859235,0.37973843,108260.0,108250.0,0.09675]
[1756766859532,0.01893843,108260.0,108250.0,0.59112811]
[1756766859833,0.01893843,108260.0,108250.0,0.95192811]
[1756766860929,0.01893843,108260.0,108250.0,1.84280811]
[1756766861123,0.01893843,108260.0,108250.0,1.90856181]
[1756766861727,0.01993843,108260.0,108250.0,1.90856181]
[1756766862022,0.01993843,108260.0,108250.0,0.76768181]
[1756766863229,0.01993843,108260.0,108250.0,1.65832181]
[1756766865940,0.01993843,108260.0,108250.0,0.76768181]
[1756766866138,0.01993843,108260.0,108250.0,1.65708181]
[1756766866929,0.001,108260.0,108250.0,1.93369941]
[1756766867129,0.001,108260.0,108250.0,2.01600642]
[1756766868437,0.39900714,108290.0,108280.0,0.04715]
[1756766868636,0.72900714,108290.0,108280.0,0.08195]
[1756766869237,0.39900714,108290.0,108280.0,0.08195]
[1756766869436,0.77900714,108290.0,108280.0,0.08195]
[1756766869637,0.78000714,108290.0,108280.0,0.08195]
[1756766869944,0.98438525,108290.0,108280.0,0.08195]
[1756766870942,0.74000714,108290.0,108280.0,0.08195]
[1756766872835,0.03920714,108290.0,108280.0,0.08195]
[1756766873143,0.03920714,108290.0,108280.0,0.68712811]
[1756766873343,0.03920714,108290.0,108280.0,0.08195]
[1756766873942,0.37920714,108290.0,108280.0,0.08195]
[1756766874245,0.36920714,108290.0,108280.0,0.08195]
[1756766875733,0.01043892,108320.0,108310.0,0.08195]
[1756766875938,0.09241892,108320.0,108310.0,0.68712811]
[1756766876242,0.09241892,108320.0,108310.0,1.57248811]
[1756766876650,0.09241892,108320.0,108310.0,1.57224811]
[1756766876848,0.09241892,108320.0,108310.0,0.68712811]
[1756766877044,0.09241892,108320.0,108310.0,1.57208811]
[1756766877244,0.09241892,108320.0,108310.0,1.57196811]
[1756766877544,0.09241892,108320.0,108310.0,0.68712811]
[1756766877846,0.09241892,108320.0,108310.0,1.57168811]
[1756766878036,0.09241892,108320.0,108310.0,0.68712811]
[1756766878236,0.09241892,108320.0,108310.0,1.64726342]
[1756766878438,0.09241892,108320.0,108310.0,0.76270342]
[1756766878644,0.48140781,108320.0,108310.0,0.96623]
[1756766878838,0.47441892,108320.0,108310.0,0.96623]
[1756766879038,0.09441892,108320.0,108310.0,0.96623]
[1756766879342,0.09441892,108320.0,108310.0,1.57140811]
[1756766880248,0.09441892,108320.0,108310.0,1.32703]
[1756766880448,0.09441892,108320.0,108310.0,1.57056811]
[1756766880747,0.09441892,108320.0,108310.0,0.44275]
[1756766880947,0.09441892,108320.0,108310.0,1.57056811]
[1756766882957,0.09441892,108320.0,108310.0,1.56984811]
[1756766884151,0.09441892,108320.0,108310.0,1.56932811]
[1756766884349,0.09441892,108320.0,108310.0,1.32495]
[1756766884543,0.09441892,108320.0,108310.0,1.56932811]
[1756766885152,0.09441892,108320.0,108310.0,0.68712811]
[1756766885352,0.09441892,108320.0,108310.0,1.56904811]
[1756766886350,0.06060892,108320.0,108310.0,1.56904811]
[1756766886546,0.09522892,108320.0,108310.0,0.08195]
[1756766886762,0.09522892,108320.0,108310.0,0.02464]
[1756766886763,1.27040703,108320.0,108310.0,0.02464]
[1756766886953,1.02602892,108320.0,108310.0,0.08569]
[1756766887856,0.66522892,108320.0,108310.0,0.08569]
[1756766888157,0.34522892,108320.0,108310.0,0.08569]
[1756766888750,1.07602892,108320.0,108310.0,0.08569]
[1756766888958,0.71522892,108320.0,108310.0,0.08569]
[1756766889157,1.07602892,108320.0,108310.0,0.08569]
[1756766891263,0.08258,108310.0,108300.0,0.02313]
[1756766891465,0.03462,108300.0,108290.0,1.34570873]
[1756766891760,0.37462,108300.0,108290.0,1.34570873]
[1756766891957,0.08258,108300.0,108290.0,1.59012684]
[1756766892349,0.24437811,108310.0,108290.0,1.59012684]
[1756766892350,0.40785892,108320.0,108310.0,0.03647]
[1756766892548,0.06039892,108320.0,108310.0,0.68935811]
[1756766892755,0.01243892,108320.0,108310.0,0.68935811]
[1756766892957,0.01043892,108320.0,108310.0,1.82631811]
[1756766893353,0.01043892,108320.0,108310.0,1.90060113]
[1756766894155,0.01043892,108320.0,108310.0,1.65622302]
[1756766894562,0.01043892,108320.0,108310.0,1.90060113]
[1756766894763,0.04505892,108320.0,108310.0,1.90084113]
[1756766895162,0.01243892,108320.0,108310.0,1.90084113]
[1756766895557,0.04505892,108320.0,108310.0,1.90084113]
[1756766895767,0.01043892,108320.0,108310.0,1.90184113]
[1756766896261,0.01043892,108320.0,108310.0,0.69035811]
[1756766896463,0.09301892,108320.0,108310.0,1.33294]
[1756766896966,0.09301892,108320.0,108310.0,1.57731811]
[1756766897368,0.09301892,108320.0,108310.0,0.69035811]
[1756766897565,0.33739703,108320.0,108310.0,1.33294]
[1756766897763,0.33739703,108320.0,108310.0,0.44598]
[1756766897965,0.09301892,108320.0,108310.0,0.44598]
[1756766898361,0.67739703,108320.0,108310.0,0.08518]
[1756766898561,0.92739703,108320.0,108310.0,0.08518]
[1756766900061,0.69301892,108320.0,108310.0,0.08518]
[1756766900965,0.99700126,108320.0,108310.0,0.08518]
[1756766901366,1.02700126,108320.0,108310.0,0.08518]
[1756766902562,0.72301892,108320.0,108310.0,0.08518]
[1756766902969,0.01043892,108320.0,108310.0,0.74996234]
[1756766903160,0.01043892,108320.0,108310.0,1.63424234]
[1756766905970,0.01043892,108320.0,108310.0,1.33026]
[1756766906162,0.01043892,108320.0,108310.0,1.58026]
[1756766906363,0.01043892,108320.0,108310.0,1.94971996]
[1756766906970,0.01043892,108320.0,108310.0,1.64573762]
[1756766907170,0.01043892,108320.0,108310.0,1.94971996]
[1756766907562,0.01043892,108320.0,108310.0,0.76145762]
[1756766907767,0.04505892,108320.0,108310.0,1.94835996]
[1756766907967,0.01043892,108320.0,108310.0,1.94835996]
[1756766909062,0.01043892,108320.0,108310.0,1.96933251]
[1756766909268,0.018602,108330.0,108320.0,0.0923103]
[1756766909570,0.04896,108350.0,108340.0,0.04771]
[1756766909770,0.43358,108350.0,108340.0,0.44498]
[1756766910171,0.08358,108350.0,108340.0,0.44498]
[1756766910465,0.44358,108350.0,108340.0,0.44498]
[1756766910772,0.08358,108350.0,108340.0,0.74896234]
[1756766910968,0.001,108350.0,108340.0,0.44498]
[1756766911664,0.02617,108350.0,108340.0,0.44498]
[1756766912073,0.003,108350.0,108340.0,0.44498]
[1756766912269,0.02617,108350.0,108340.0,0.44498]
[1756766912471,0.003,108350.0,108340.0,0.74896234]
[1756766912972,0.02617,108350.0,108340.0,0.74896234]
[1756766913173,0.08558,108350.0,108340.0,0.44498]
[1756766913366,0.46558,108350.0,108340.0,0.44498]
[1756766913566,0.08558,108350.0,108340.0,0.44498]
[1756766913767,0.42558,108350.0,108340.0,0.44498]
[1756766913976,0.08558,108350.0,108340.0,0.44498]
[1756766914175,0.02617,108350.0,108340.0,0.44498]
[1756766914375,0.08558,108350.0,108340.0,0.44498]
[1756766914971,1.09036234,108350.0,108340.0,0.08418]
[1756766915165,0.003,108350.0,108340.0,0.08418]
[1756766915369,0.003,108350.0,108340.0,0.74896234]
[1756766915671,0.02654,108350.0,108340.0,0.44498]
[1756766915975,0.70992234,108350.0,108340.0,0.08418]
[1756766916470,0.40594,108350.0,108340.0,0.08418]
[1756766916864,0.05036,108350.0,108340.0,0.08418]
[1756766917077,0.08594,108350.0,108340.0,0.08418]
[1756766918278,0.46594,108350.0,108340.0,0.08418]
[1756766918577,1.13072234,108350.0,108340.0,0.08418]
[1756766918776,0.76992234,108350.0,108340.0,0.08418]
[1756766919070,0.46594,108350.0,108340.0,0.08418]
[1756766922273,0.46494,108350.0,108340.0,0.08418]
[1756766922975,0.08494,108350.0,108340.0,0.08418]
[1756766924174,0.002,108350.0,108340.0,0.08418]
[1756766924380,0.002,108350.0,108340.0,0.78029161]
[1756766924582,0.002,108350.0,108340.0,1.00362203]
[1756766924776,0.002,108350.0,108340.0,1.09591473]
[1756766925177,0.002,108350.0,108340.0,1.03029161]
[1756766925386,0.002,108350.0,108340.0,1.11259862]
[1756766925592,0.002,108350.0,108340.0,1.03029161]
[1756766926083,0.001,108350.0,108340.0,1.0919123]
[1756766927579,0.001,108350.0,108340.0,0.9996196]
[1756766928480,0.001,108350.0,108340.0,0.7496196]
[1756766928786,0.02454,108350.0,108340.0,1.71912875]
[1756766929284,0.001,108350.0,108340.0,1.71912875]
[1756766929582,0.001,108350.0,108340.0,1.41544915]
[1756766929583,0.08394,108350.0,108340.0,1.41544915]
[1756766929772,0.08394,108350.0,108340.0,0.51140915]
[1756766929971,0.33394,108350.0,108340.0,1.41488915]
[1756766930975,0.33394,108350.0,108340.0,0.51140915]
[1756766931175,0.33394,108350.0,108340.0,1.41424915]
[1756766931582,0.33394,108350.0,108340.0,1.34882]
[1756766931971,0.33394,108350.0,108340.0,0.44598]
[1756766932176,0.9775796,108350.0,108340.0,0.04871]
[1756766932479,0.67394,108350.0,108340.0,0.08598]
[1756766933088,1.3383796,108350.0,108340.0,0.001]
[1756766933985,1.3383796,108350.0,108340.0,0.04847]
[1756766934380,1.3383796,108350.0,108340.0,0.02531]
[1756766934582,1.3383796,108350.0,108340.0,0.001]
[1756766938888,1.03474,108350.0,108340.0,0.001]
[1756766939088,1.3383796,108350.0,108340.0,0.001]
[1756766939289,1.0883796,108350.0,108340.0,0.001]
[1756766940592,1.3027996,108350.0,108320.0,0.10269915]
[1756766940791,0.3865796,108330.0,108320.0,0.08474]
[1756766940992,0.7665796,108330.0,108320.0,0.08474]
[1756766941584,0.7665796,108330.0,108320.0,0.15016915]
[1756766941786,0.7665796,108330.0,108320.0,0.06542915]
[1756766941985,0.08294,108320.0,108310.0,0.5319417]
[1756766942185,0.40294,108320.0,108310.0,0.5319417]
[1756766942385,0.39994,108320.0,108310.0,0.5319417]
[1756766942591,0.39994,108320.0,108310.0,0.1711417]
[1756766944096,0.39994,108320.0,108310.0,0.1761417]
[1756766944989,0.39994,108320.0,108310.0,0.11071255]
[1756766945190,0.36994,108320.0,108310.0,0.11071255]
[1756766945998,0.35994,108320.0,108310.0,0.11071255]
[1756766946188,0.36928767,108320.0,108310.0,0.11071255]
[1756766946797,0.61245417,108320.0,108310.0,0.11071255]
[1756766947098,0.61245417,108320.0,108310.0,0.10571255]
[1756766947297,0.61345417,108320.0,108310.0,0.10571255]
[1756766947990,0.33345417,108320.0,108310.0,0.10571255]
[1756766948185,0.33345417,108320.0,108310.0,0.1711417]
[1756766948390,0.58345417,108320.0,108310.0,0.10571255]
[1756766948896,0.33345417,108320.0,108310.0,0.10571255]
[1756766949096,0.55345417,108320.0,108310.0,0.10571255]
[1756766949492,0.33345417,108320.0,108310.0,0.10571255]
[1756766950089,0.08094,108320.0,108310.0,0.34887905]
[1756766950296,0.02454,108320.0,108310.0,1.0251082]
[1756766950498,0.001,108320.0,108310.0,1.0251082]
[1756766950697,0.001,108320.0,108310.0,1.9210282]
[1756766950894,0.001,108320.0,108310.0,2.0133468]
[1756766951594,0.001,108320.0,108310.0,1.94791765]
[1756766951796,0.001,108320.0,108310.0,2.03022466]
[1756766954195,0.001,108320.0,108310.0,1.04198606]
[1756766954401,0.02447,108320.0,108310.0,1.68766606]
[1756766954901,0.02447,108320.0,108310.0,1.68758606]
[1756766955302,0.001,108320.0,108310.0,1.68758606]
[1756766956002,0.001,108320.0,108310.0,1.74824842]
[1756766957597,0.001,108320.0,108310.0,0.85264842]
[1756766958005,0.001,108320.0,108310.0,1.74680842]
[1756766959213,0.001,108320.0,108310.0,1.83912702]
[1756766959406,0.001,108320.0,108310.0,1.75682001]
[1756766959606,0.001,108320.0,108310.0,1.87225604]
[1756766960007,0.001,108320.0,108310.0,1.87161604]
[1756766962312,0.001,108320.0,108310.0,1.77781744]
[1756766966819,0.001,108320.0,108310.0,0.88577744]
[1756766967018,0.001,108320.0,108310.0,1.77569744]
[1756766967714,0.001,108320.0,108310.0,0.88577744]
[1756766967920,0.08453,108320.0,108310.0,1.77537744]
[1756766968316,0.001,108320.0,108310.0,1.77537744]
[1756766969120,0.001,108320.0,108310.0,2.02537744]
[1756766970420,0.001,108320.0,108310.0,1.77537744]
[1756766970721,0.02447,108320.0,108310.0,0.88577744]
[1756766971027,0.02447,108320.0,108310.0,1.77449744]
[1756766971623,0.02447,108320.0,108310.0,0.88577744]
[1756766971829,0.66453,108320.0,108310.0,0.66391608]
[1756766972121,0.33453,108320.0,108310.0,1.43628005]
[1756766974621,0.33453,108320.0,108310.0,0.54848005]
[1756766974829,0.33453,108320.0,108310.0,1.43560005]
[1756766975025,0.251,108320.0,108310.0,1.73942891]
[1756766975922,0.251,108320.0,108310.0,1.67867274]
[1756766976128,0.001,108320.0,108310.0,2.02099134]
[1756766976631,0.001,108320.0,108310.0,2.05445987]
[1756766978829,0.001,108320.0,108310.0,2.05625987]
[1756766979825,0.001,108320.0,108310.0,1.47082858]
[1756766979826,0.02422,108320.0,108310.0,1.47082858]
[1756766980024,0.001,108320.0,108310.0,1.71390127]
[1756766980725,0.001,108320.0,108310.0,0.82502127]
[1756766980928,0.001,108320.0,108310.0,1.71338127]
[1756766982535,0.001,108320.0,108310.0,1.59794524]
[1756766983137,0.001,108320.0,108310.0,1.71189934]
[1756766985529,0.02422,108320.0,108310.0,1.71153934]
[1756766986335,0.04753,108320.0,108310.0,0.82449934]
[1756766986542,0.08303,108320.0,108310.0,1.71077934]
[1756766986835,0.08303,108320.0,108310.0,0.82449934]
[1756766987040,0.33303,108320.0,108310.0,1.71045934]
[1756766988540,0.33303,108320.0,108310.0,0.82449934]
[1756766988941,0.33303,108320.0,108310.0,1.70977934]
[1756766989240,0.29753,108320.0,108310.0,1.70977934]
[1756766989834,0.001,108320.0,108310.0,1.70977934]
[1756766992045,0.02322,108330.0,108320.0,0.03677]
[1756766992246,0.08203,108330.0,108320.0,0.77170019]
[1756766992436,0.08203,108330.0,108320.0,0.5286275]
[1756766995538,0.08203,108330.0,108320.0,0.44648]
[1756766996043,0.08203,108330.0,108320.0,1.32932]
[1756766996542,0.08203,108330.0,108320.0,0.44648]
[1756766996737,0.08203,108330.0,108320.0,1.32868]
[1756766996933,0.08203,108330.0,108320.0,1.32816]
[1756766997636,0.04653,108330.0,108320.0,0.44648]
[1756766997836,0.04653,108330.0,108320.0,1.41031388]
[1756766998942,0.04653,108330.0,108320.0,1.57123269]
[1756766999852,0.08203,108330.0,108320.0,1.57123269]
[1756767000145,0.08203,108330.0,108320.0,0.68955269]
[1756767000450,0.92510269,108330.0,108320.0,0.08568]
[1756767000645,0.68203,108330.0,108320.0,0.08568]
[1756767000943,0.68203,108330.0,108320.0,0.52864108]
[1756767001147,0.67203,108330.0,108320.0,0.16784108]
[1756767001340,0.63653,108330.0,108320.0,0.44648]
[1756767001531,0.63653,108330.0,108320.0,0.68955269]
[1756767001945,0.01843463,108340.0,108320.0,0.65278269]
[1756767002149,0.01843463,108340.0,108330.0,1.63562384]
[1756767002342,0.01843463,108340.0,108330.0,1.39255115]
[1756767002753,0.01843463,108340.0,108330.0,1.3268]
[1756767003647,0.01843463,108340.0,108330.0,1.40896108]
[1756767004157,0.04265463,108340.0,108330.0,1.65107377]
[1756767004345,0.04265463,108340.0,108330.0,1.40800108]
[1756767004543,0.07815463,108340.0,108330.0,1.40800108]
[1756767006052,0.07815463,108340.0,108330.0,0.52864108]
[1756767006260,0.46146463,108340.0,108330.0,1.04644108]
[1756767006446,0.42596463,108340.0,108330.0,1.32508]
[1756767006757,0.06596463,108340.0,108330.0,1.40724108]
[1756767007261,0.01943463,108340.0,108330.0,1.40724108]
[1756767007561,0.01943463,108340.0,108330.0,1.56815269]
[1756767008554,0.01943463,108340.0,108330.0,1.57728808]
[1756767010152,0.10240463,108340.0,108330.0,1.56983269]
[1756767010352,0.10240463,108340.0,108330.0,1.32664]
[1756767010559,0.01943463,108340.0,108330.0,1.32664]
[1756767011269,0.01943463,108340.0,108330.0,1.56971269]
[1756767011756,0.01943463,108340.0,108330.0,1.32664]
[1756767011954,0.01943463,108340.0,108330.0,1.56971269]
[1756767012661,0.01943463,108340.0,108330.0,1.65187377]
[1756767013056,0.01943463,108340.0,108330.0,1.65095377]
[1756767016558,0.01943463,108340.0,108330.0,1.29015377]
[1756767016861,0.01943463,108340.0,108330.0,1.65095377]
[1756767018958,0.01943463,108340.0,108330.0,1.64943377]
[1756767022560,0.01943463,108340.0,108330.0,0.77171377]
[1756767022766,0.01943463,108340.0,108330.0,1.64735377]
[1756767023060,0.01943463,108340.0,108330.0,1.89735377]
[1756767023261,0.01943463,108340.0,108330.0,2.23272866]
[1756767023566,0.01943463,108340.0,108330.0,2.15056758]
[1756767024059,0.01943463,108340.0,108330.0,2.26548168]
[1756767025454,0.01943463,108340.0,108330.0,1.7793363]
[1756767025455,0.001,108340.0,108330.0,1.7793363]
[1756767025654,0.001,108340.0,108330.0,2.28622641]
[1756767026064,0.001,108350.0,108340.0,0.03634]
[1756767026264,0.001,108350.0,108340.0,0.76867262]
[1756767026472,0.001,108350.0,108340.0,1.64359262]
[1756767026964,0.001,108350.0,108340.0,1.73588632]
[1756767027470,0.001,108350.0,108340.0,0.76867262]
[1756767027659,0.001,108350.0,108340.0,1.64359262]
[1756767029362,0.001,108350.0,108340.0,1.73588782]
[1756767030364,0.001,108350.0,108340.0,0.76867262]
[1756767030568,0.001,108350.0,108340.0,1.64355262]
[1756767030960,0.001,108350.0,108340.0,1.56148269]
[1756767031655,0.001,108350.0,108340.0,1.98578934]
[1756767032168,0.0355,108390.0,108350.0,0.0922867]
[1756767032373,0.41153941,108400.0,108390.0,0.03634]
[1756767032559,0.77900941,108400.0,108390.0,0.08273]
[1756767032868,0.78835728,108400.0,108390.0,0.95757]
[1756767033055,0.78835728,108400.0,108390.0,0.08273]
[1756767033258,1.03142997,108400.0,108390.0,0.08273]
[1756767034067,1.03842997,108400.0,108390.0,0.08273]
[1756767034271,0.79535728,108400.0,108390.0,0.08273]
[1756767034476,0.43455728,108400.0,108390.0,0.08273]
[1756767035669,0.43255728,108400.0,108390.0,0.08273]
[1756767036560,0.67562997,108400.0,108390.0,0.07522435]
[1756767036867,1.28642997,108400.0,108380.0,0.05450137]
[1756767037067,0.79335728,108400.0,108390.0,0.02424]
[1756767037263,1.25019997,108400.0,108380.0,0.05450137]
[1756767037468,1.25019997,108400.0,108380.0,0.06880137]
[1756767037469,0.32479269,108390.0,108380.0,0.06880137]
[1756767037662,0.67479269,108390.0,108380.0,0.06880137]
[1756767038068,0.67479269,108390.0,108380.0,0.10264137]
[1756767038469,1.03559269,108390.0,108380.0,0.10264137]
[1756767038662,0.79252,108390.0,108380.0,0.10264137]
[1756767038862,1.03959269,108390.0,108380.0,0.10264137]
[1756767039262,0.67879269,108390.0,108380.0,0.10264137]
[1756767039462,0.79652,108390.0,108380.0,0.10264137]
[1756767039865,0.43572,108390.0,108380.0,0.10264137]
[1756767040867,0.79652,108390.0,108380.0,0.10264137]
[1756767041368,0.79652,108390.0,108380.0,0.17462549]
[1756767042073,1.03959269,108390.0,108380.0,0.14078549]
[1756767043268,2.40786538,108390.0,108380.0,0.02066137]
[1756767043574,0.04728,108370.0,108360.0,1.02850897]
[1756767043768,0.67820269,108370.0,108360.0,1.02850897]
[1756767043968,0.67820269,108370.0,108360.0,1.01105606]
[1756767044179,0.43513,108370.0,108360.0,1.01105606]
[1756767044675,1.28900269,108370.0,108360.0,0.02055606]
[1756767045082,0.92820269,108370.0,108360.0,0.02055606]
[1756767045474,0.92820269,108370.0,108360.0,0.04479606]
[1756767045862,0.92920269,108370.0,108360.0,0.04479606]
[1756767046069,0.92920269,108370.0,108360.0,0.06869606]
[1756767046570,0.68613,108370.0,108360.0,0.06869606]
[1756767046770,0.68613,108370.0,108360.0,0.10253606]
[1756767046771,0.67613,108370.0,108360.0,0.10253606]
[1756767047277,0.04828,108370.0,108360.0,0.34560875]
[1756767047467,0.07613,108370.0,108360.0,0.10253606]
[1756767047668,0.07613,108370.0,108360.0,0.34560875]
[1756767047867,0.07613,108370.0,108360.0,1.22024875]
[1756767048477,0.07613,108370.0,108360.0,1.58104875]
[1756767048777,0.001,108370.0,108360.0,1.83104875]
[1756767049074,0.001,108370.0,108360.0,1.89664166]
[1756767052176,0.001,108370.0,108360.0,1.83108875]
[1756767052378,0.07613,108370.0,108360.0,1.58108875]
[1756767052578,0.07613,108370.0,108360.0,1.33801606]
[1756767053179,0.07613,108370.0,108360.0,0.46333606]
[1756767053478,0.07613,108370.0,108360.0,1.33801606]
[1756767053780,0.07613,108370.0,108360.0,1.58108875]
[1756767053982,0.07613,108370.0,108360.0,0.70640875]
[1756767054180,0.07613,108370.0,108360.0,1.58108875]
[1756767054776,0.02428,108370.0,108360.0,1.58108875]
[1756767054976,0.001,108370.0,108360.0,1.58108875]
[1756767056083,0.001,108370.0,108360.0,1.66307989]
[1756767057284,0.001,108370.0,108360.0,0.78839989]
[1756767057481,0.001,108370.0,108360.0,1.66303989]
[1756767057984,0.02428,108370.0,108360.0,1.66303989]
[1756767058786,0.02428,108370.0,108360.0,0.78839989]
[1756767058976,0.02428,108370.0,108360.0,1.66299989]
[1756767059485,0.02428,108370.0,108360.0,1.4199272]
[1756767059680,0.02428,108370.0,108360.0,1.66299989]
[1756767059883,0.02428,108370.0,108360.0,0.77203357]
[1756767060083,0.02428,108370.0,108360.0,1.64663357]
[1756767060485,0.02428,108370.0,108360.0,0.77203357]
[1756767060788,0.02428,108370.0,108360.0,1.64663357]
[1756767061278,0.02428,108370.0,108360.0,0.70640875]
[1756767061685,0.02428,108370.0,108360.0,1.58096875]
[1756767062382,0.001,108370.0,108360.0,1.58096875]
[1756767062583,0.31920269,108370.0,108360.0,1.33789606]
[1756767062787,0.64920269,108370.0,108360.0,0.52897435]
[1756767062990,0.64920269,108370.0,108360.0,1.40353435]
[1756767063175,0.89920269,108370.0,108360.0,1.02217829]
[1756767063383,1.26000269,108370.0,108360.0,0.11377829]
[1756767063583,1.26000269,108370.0,108360.0,0.04814]
[1756767063782,1.26906344,108370.0,108360.0,0.08198]
[1756767064992,0.02785,108360.0,108350.0,1.09227783]
[1756767065194,0.64764269,108360.0,108350.0,0.14558829]